lending/lending_fUSD_20240110
["ID","MTS","AMOUNT","RATE_DAILY","PERIOD"]
[311099799,1704904243310,-500.0,0.00032876,2]
[311099801,1704904243320,-500.0,0.00032876,2]
[311099803,1704904243329,-500.0,0.00032876,2]
[311099804,1704904243338,-724.95,0.00032876,2]
[311099806,1704904243350,-153.84,0.00032877,2]
[311099808,1704904243359,-459.13,0.00032877,15]
[311099810,1704904243369,-2952.29,0.00032877,2]
[311099812,1704904243379,-8646.75,0.0003288,2]
[311099814,1704904243388,-8646.75,0.0003288,2]
[311099817,1704904243397,-8646.75,0.0003288,2]
[311099819,1704904243406,-8646.75,0.0003288,2]
[311099821,1704904243415,-8646.75,0.0003288,2]
[311099823,1704904243424,-300.54942983,0.00032992,2]
[311099824,1704904243434,-155.0,0.00033,4]
[311099826,1704904243443,-550.0,0.00033,3]
[311099828,1704904243452,-522.15,0.0003315,2]
[311099830,1704904243462,-2425.0,0.0003315,2]
[311099831,1704904243471,-500.0,0.0003315,2]
[311099832,1704904243481,-500.0,0.0003315,2]
[311099833,1704904243490,-943.89,0.0003315,2]
[311099834,1704904243500,-588.0,0.0003315,2]
[311099835,1704904243509,-500.0,0.0003315,2]
[311099836,1704904243519,-500.0,0.0003315,2]
[311099837,1704904243529,-500.0,0.0003315,2]
[311099838,1704904243538,-724.95,0.0003315,2]
[311099839,1704904243547,-150.0,0.00033211,7]
[311099840,1704904243557,-160.72,0.00033244,2]
[311099841,1704904243566,-157.45,0.00033353,2]
[311099842,1704904243576,-522.15,0.00033424,2]
[311099843,1704904243585,-2425.0,0.00033424,2]
[311099845,1704904243594,-500.0,0.00033424,2]
[311099847,1704904243606,-335.74,0.00033424,2]
[311099849,1704904243615,-943.89,0.00033424,2]
[311099851,1704904243625,-588.0,0.00033424,2]
[311099853,1704904243634,-500.0,0.00033424,2]
[311099856,1704904243644,-217.89,0.00033424,2]
[311099858,1704904243653,-500.0,0.00033424,2]
[311099860,1704904243662,-724.95,0.00033424,2]
[311099862,1704904243671,-272.7358946,0.000336,4]
[311099863,1704904243680,-571.52135556,0.00033614,6]
[311099865,1704904243690,-160.22,0.00033674,2]
[311099867,1704904243700,-522.15,0.00033698,2]
[311099869,1704904243709,-2425.0,0.00033698,2]
[311099871,1704904243718,-500.0,0.00033698,2]
[311099873,1704904243728,-943.89,0.00033698,2]
[311099875,1704904243738,-506.79,0.00033698,2]
[311099877,1704904243747,-500.0,0.00033698,2]
[311099879,1704904243756,-500.0,0.00033698,2]
[311099881,1704904243766,-724.95,0.00033698,2]
[311099883,1704904243776,-153.84,0.0003379,2]
[311099885,1704904243785,-686.87814676,0.00033948,4]
[311099887,1704904243795,-522.15,0.00033972,2]
[311099890,1704904243807,-2425.0,0.00033972,2]
[311099892,1704904243816,-500.0,0.00033972,2]
[311099894,1704904243826,-943.89,0.00033972,2]
[311099896,1704904243835,-643.42,0.00033972,2]
[311099898,1704904243845,-500.0,0.00033972,2]
[311099900,1704904243854,-724.95,0.00033972,2]
[311099902,1704904243864,-155.0,0.00034,4]
[311099904,1704904243873,-801.97521111,0.00034,4]
[311099906,1704904243882,-1000.0,0.00034,4]
[311099908,1704904243892,-376.11195413,0.00034245,4]
[311099910,1704904243901,-522.15,0.00034246,2]
[311099912,1704904243911,-2425.0,0.00034246,2]
[311099914,1704904243921,-500.0,0.00034246,2]
[311099916,1704904243934,-943.89,0.00034246,2]
[311099918,1704904243943,-500.0,0.00034246,2]
[311099920,1704904243953,-724.95,0.00034246,2]
[311099922,1704904243962,-180.27,0.00034383,2]
[311099924,1704904243971,-160.72,0.00034385,2]
[311099926,1704904243980,-17080.30143072,0.0003448,10]
[311099928,1704904243989,-70816.83155537,0.0003448,10]
[311099930,1704904243999,-4811.69303516,0.0003448,10]
[311099932,1704904244008,-7506.9100924,0.0003448,10]
[311099934,1704904244021,-1637.71961,0.0003452,2]
[311099936,1704904244030,-343.347967,0.0003452,2]
[311099938,1704904244039,-4491.897405,0.0003452,2]
[311099940,1704904244048,-1013.710273,0.0003452,2]
[311099942,1704904244057,-354.798595,0.0003452,2]
[311099944,1704904244066,-2620.273486,0.0003452,2]
[311099946,1704904244075,-748.649567,0.0003452,2]
[311099948,1704904244085,-522.15,0.0003452,2]
[311099950,1704904244096,-2425.0,0.0003452,2]
[311099952,1704904244106,-500.0,0.0003452,2]
[311099954,1704904244116,-943.89,0.0003452,2]
[311099956,1704904244125,-336.63,0.0003452,2]
[311099958,1704904244134,-724.95,0.0003452,2]
[311099960,1704904244143,-996.91,0.00034521,2]
[311099962,1704904244153,-180.0,0.00034658,2]
[311099964,1704904244162,-151.65186452,0.00034694,2]
[311099966,1704904244171,-153.84,0.00034703,2]
[311099968,1704904244180,-291.46,0.00034703,2]
[311099970,1704904244190,-2456.579416,0.00034794,2]
[311099973,1704904244200,-515.021951,0.00034794,2]
[311099975,1704904244209,-6737.846108,0.00034794,2]
[311099977,1704904244218,-1520.565409,0.00034794,2]
[311099979,1704904244227,-532.197893,0.00034794,2]
[311099980,1704904244237,-3930.41023,0.00034794,2]
[311099982,1704904244246,-1122.974351,0.00034794,2]
[311099985,1704904244255,-522.15,0.00034794,2]
[311099987,1704904244265,-2425.0,0.00034794,2]
[311099989,1704904244274,-500.0,0.00034794,2]
[311099991,1704904244283,-943.89,0.00034794,2]
[311099993,1704904244292,-724.95,0.00034794,2]
[311099995,1704904244301,-5197.53352154,0.00034835,7]
[311099997,1704904244310,-3567.82924651,0.00034835,7]
[311099999,1704904244319,-4661.63410832,0.00034835,7]
[311100001,1704904244328,-3431.43817835,0.00034835,7]
[311100003,1704904244337,-926.33299696,0.00034835,4]
[311100005,1704904244348,-26397.71980391,0.00034835,7]
[311100006,1704904244357,-292.24917029,0.00034835,4]
[311100008,1704904244366,-814.50284108,0.000349,7]
[311100010,1704904244375,-914.61079181,0.000349,2]
[311100012,1704904244384,-914.61079172,0.000349,2]
[311100014,1704904244394,-914.61079172,0.000349,2]
[311100017,1704904244403,-914.61079172,0.000349,2]
[311100019,1704904244413,-763.46809079,0.00034903,4]
[311100021,1704904244422,-1939.74328326,0.00034921,6]
[311100022,1704904244431,-3275.439221,0.00034931,2]
[311100025,1704904244440,-686.695935,0.00034931,2]
[311100027,1704904244449,-8983.794811,0.00034931,2]
[311100029,1704904244458,-2027.420546,0.00034931,2]
[311100031,1704904244467,-709.597191,0.00034931,2]
[311100033,1704904244477,-5240.546973,0.00034931,2]
[311100035,1704904244489,-1497.299135,0.00034931,2]
[311100037,1704904244499,-1083.67749248,0.00034939,7]
[311100039,1704904244508,-201.59167609,0.00034998,4]
[311100041,1704904244518,-100000.0,0.00035,2]
[311100043,1704904244527,-154.75908958,0.00035,5]
[311100045,1704904244536,-16398.67616254,0.00035,2]
[311100047,1704904244546,-2500.0,0.00035,2]
[311100049,1704904244555,-150.0,0.00035,7]
[311100051,1704904244564,-5000.0,0.00035,2]
[311100053,1704904244574,-15759.96912791,0.00035,7]
[311100055,1704904244583,-155.0,0.00035,2]
[311100057,1704904244592,-707.01055253,0.00035,4]
[311100059,1704904244602,-55810.69217093,0.00035,4]
[311100061,1704904244612,-16495.5114499,0.00035,2]
[311100063,1704904244621,-448.73636838,0.00035,4]
[311100065,1704904244630,-205.73491777,0.00035,4]
[311100067,1704904244639,-1257.66937248,0.00035,4]
[311100069,1704904244649,-600.0,0.00035,3]
[311100071,1704904244658,-4094.299027,0.00035068,2]
[311100073,1704904244667,-858.369919,0.00035068,2]
[311100075,1704904244676,-11229.743514,0.00035068,2]
[311100077,1704904244686,-2534.275683,0.00035068,2]
[311100079,1704904244695,-886.996489,0.00035068,2]
[311100081,1704904244704,-6550.683716,0.00035068,2]
[311100083,1704904244714,-1871.623919,0.00035068,2]
[311100085,1704904244723,-522.15,0.00035068,2]
[311100087,1704904244732,-2425.0,0.00035068,2]
[311100089,1704904244742,-430.95247203,0.00035068,2]
[311100091,1704904244752,-943.89,0.00035068,2]
[311100093,1704904244761,-724.95,0.00035068,2]
[311100095,1704904244770,-151.65186412,0.00035143,2]
[311100098,1704904244780,-571.52135556,0.00035186,7]
[311100100,1704904244790,-1920.758059,0.000352,2]
[311100102,1704904244799,-157.45,0.00035211,2]
[311100104,1704904244809,-914.61079172,0.00035216,2]
[311100106,1704904244818,-150.1,0.00035274,2]
[311100108,1704904244829,-3000.0,0.000353,3]
[311100110,1704904244838,-3000.0,0.0003531,3]
[311100112,1704904244849,-3000.0,0.0003532,3]
[311100114,1704904244859,-3000.0,0.0003533,3]
[311100116,1704904244868,-5192.235475,0.0003534,3]
[311100118,1704904244878,-5732.018637,0.00035342,2]
[311100119,1704904244889,-1201.717886,0.00035342,2]
[311100121,1704904244899,-3547.985956,0.00035342,2]
[311100123,1704904244908,-15721.640919,0.00035342,2]
[311100126,1704904244919,-1241.795085,0.00035342,2]
[311100128,1704904244929,-9170.957203,0.00035342,2]
[311100130,1704904244938,-2620.273487,0.00035342,2]
[311100132,1704904244947,-522.15,0.00035342,2]
[311100133,1704904244957,-2425.0,0.00035342,2]
[311100136,1704904244966,-943.89,0.00035342,2]
[311100137,1704904244975,-724.95,0.00035342,2]
[311100139,1704904244984,-814.50284102,0.00035526,8]
[311100141,1704904244993,-160.72,0.00035527,2]
[311100143,1704904245003,-151.65186412,0.00035592,2]
[311100145,1704904245012,-4054.841092,0.000356,2]
[311100147,1704904245021,-1419.194383,0.000356,2]
[311100149,1704904245031,-522.15,0.00035616,2]
[311100151,1704904245041,-2425.0,0.00035616,2]
[311100153,1704904245050,-943.89,0.00035616,2]
[311100155,1704904245060,-724.95,0.00035616,2]
[311100157,1704904245069,-153.84,0.00035616,2]
[311100159,1704904245080,-150.0,0.00035616,2]
[311100161,1704904245089,-996.91,0.00035798,2]
[311100163,1704904245098,-522.15,0.0003589,2]
[311100165,1704904245107,-2425.0,0.0003589,2]
[311100167,1704904245117,-943.89,0.0003589,2]
[311100169,1704904245126,-724.95,0.0003589,2]
[311100171,1704904245136,-1542.42,0.0003589,10]
[311100173,1704904245145,-215.14462505,0.000359,7]
[311100175,1704904245154,-202.53177057,0.000359,2]
[311100177,1704904245163,-150.0,0.00035999,2]
[311100179,1704904245172,-300.0,0.00035999,7]
[311100181,1704904245182,-350.0,0.00035999,12]
[311100183,1704904245191,-100000.0,0.00036,3]
[311100185,1704904245200,-116557.18901741,0.00036,4]
[311100187,1704904245210,-762.12654514,0.00036,4]
[311100189,1704904245220,-245.27864267,0.00036,2]
[311100191,1704904245229,-151.15,0.00036,2]
[311100193,1704904245239,-151.15,0.00036,2]
[311100196,1704904245248,-151.15,0.00036,2]
[311100198,1704904245258,-151.15,0.00036,2]
[311100200,1704904245268,-151.15,0.00036,2]
[311100202,1704904245277,-151.15,0.00036,2]
[311100204,1704904245287,-151.15,0.00036,2]
[311100205,1704904245296,-151.15,0.00036,2]
[311100208,1704904245305,-151.65186412,0.00036041,2]
[311100210,1704904245315,-720.96053035,0.0003606,8]
[311100212,1704904245324,-814.50284102,0.00036153,9]
[311100213,1704904245333,-522.15,0.00036164,2]
[311100216,1704904245343,-2425.0,0.00036164,2]
[311100218,1704904245354,-943.89,0.00036164,2]
[311100220,1704904245364,-724.95,0.00036164,2]
[311100222,1704904245373,-153.0,0.000362,2]
[311100224,1704904245383,-1000.0,0.000362,2]
[311100226,1704904245392,-1000.0,0.00036297,2]
[311100228,1704904245401,-522.22380028,0.00036438,2]
[311100231,1704904245411,-2425.19720404,0.00036438,2]
[311100233,1704904245421,-944.03,0.00036438,2]
[311100235,1704904245430,-725.16769015,0.00036438,2]
[311100237,1704904245440,-1000.0,0.00036438,120]
[311100239,1704904245449,-151.65186412,0.0003649,2]
[311100241,1704904245458,-22179.9358457,0.000365,7]
[311100243,1704904245467,-153.84,0.0003653,2]
[311100245,1704904245476,-150.0,0.00036554,2]
[311100247,1704904245485,-459.13,0.00036613,15]
[311100249,1704904245494,-180.27,0.00036647,2]
[311100251,1704904245503,-160.72,0.00036669,2]
[311100253,1704904245512,-156.76,0.00036734,2]
[311100255,1704904245522,-571.52135556,0.00036757,8]
[311100257,1704904245531,-814.50284102,0.00036779,9]
[311100259,1704904245541,-914.61079172,0.00036795,2]
[311100261,1704904245550,-1000.0,0.000369,2]
[311100264,1704904245560,-151.65186412,0.00036939,2]
[311100266,1704904245569,-100000.0,0.00037,2]
[311100268,1704904245578,-666.18362384,0.00037,7]
[311100270,1704904245588,-308.7531133,0.00037,4]
[311100272,1704904245598,-2000.0,0.00037,15]
[311100274,1704904245607,-120154.03,0.00037,7]
[311100276,1704904245617,-1434.33,0.00037,3]
[311100278,1704904245626,-1434.33,0.00037,3]
[311100280,1704904245635,-1434.33,0.00037,3]
[311100282,1704904245644,-1434.33,0.00037,3]
[311100284,1704904245653,-1434.33,0.00037,3]
[311100304,1704904245832,-1434.33,0.00037,3]
[311100306,1704904245841,-1434.33,0.00037,3]
[311100308,1704904245851,-1434.33,0.00037,3]
[311100310,1704904245860,-1434.33,0.00037,3]
[311100312,1704904245870,-1434.33,0.00037,3]
[311100314,1704904245879,-1434.33,0.00037,3]
[311100316,1704904245888,-1434.33,0.00037,3]
[311100317,1704904245898,-1434.33,0.00037,3]
[311100320,1704904245908,-1434.33,0.00037,3]
[311100322,1704904245918,-1434.33,0.00037,3]
[311100324,1704904245928,-1434.33,0.00037,3]
[311100325,1704904245937,-1434.33,0.00037,3]
[311100328,1704904245949,-1434.33,0.00037,3]
[311100330,1704904245959,-1434.33,0.00037,3]
[311100332,1704904245968,-1434.33,0.00037,3]
[311100333,1704904245978,-650.0,0.00037,3]
[311100335,1704904245987,-1000.0,0.00037061,30]
[311100338,1704904245999,-1000.0,0.00037061,60]
[311100340,1704904246008,-1762.752726,0.00037061,30]
[311100342,1704904246017,-59207.6,0.00037061,120]
[311100344,1704904246027,-304.949637,0.00037061,30]
[311100346,1704904246037,-1965.990009,0.00037061,30]
[311100348,1704904246047,-2640.0,0.00037061,60]
[311100349,1704904246056,-996.91,0.00037075,2]
[311100352,1704904246066,-205.0,0.00037092,2]
[311100354,1704904246075,-448.84,0.000371,2]
[311100356,1704904246085,-200.0,0.00037184,2]
[311100358,1704904246094,-200.0,0.00037184,10]
[311100360,1704904246105,-800.0,0.00037184,10]
[311100362,1704904246114,-1000.0,0.000372,2]
[311100364,1704904246124,-242.0,0.00037201,5]
[311100366,1704904246133,-810.37124825,0.0003724,4]
[311100368,1704904246143,-750.0,0.000373,2]
[311100370,1704904246153,-151.65186412,0.00037387,2]
[311100372,1704904246163,-814.50284102,0.00037405,10]
[311100374,1704904246174,-153.84,0.00037443,2]
[311100376,1704904246184,-150.0,0.00037491,2]
[311100378,1704904246193,-353.02431632,0.00037535,120]
[311100380,1704904246202,-500.0,0.00037561,10]
[311100382,1704904246212,-218.44034584,0.00037616,7]
[311100384,1704904246222,-218.44034584,0.0003767,7]
[311100386,1704904246231,-150.05964641,0.00037692,7]
[311100388,1704904246242,-150.80834968,0.00037704,7]
[311100390,1704904246251,-154.94747985,0.00037741,7]
[311100392,1704904246261,-150.80834968,0.00037777,7]
[311100393,1704904246271,-160.72,0.0003781,2]
[311100394,1704904246281,-218.44034584,0.00037833,7]
[311100395,1704904246290,-151.65186412,0.00037836,2]
[311100396,1704904246300,-155.0,0.0003789,3]
[311100397,1704904246310,-291.46,0.000379,2]
[311100398,1704904246319,-673539.347435,0.000379,2]
[311100399,1704904246329,-202.53177056,0.000379,2]
[311100400,1704904246339,-153.25468709,0.00037901,7]
[311100401,1704904246349,-163.69791724,0.00037902,7]
[311100402,1704904246359,-156.11334273,0.00037965,7]
[311100404,1704904246369,-100000.0,0.00038,3]
[311100406,1704904246378,-14410.04653104,0.00038,4]
[311100408,1704904246388,-12199.52,0.00038,7]
[311100409,1704904246397,-165.0,0.00038,2]
[311100410,1704904246407,-814.50284102,0.00038032,11]
[311100411,1704904246416,-218.44034584,0.00038143,7]
[311100412,1704904246426,-1552.69,0.00038189,2]
[311100413,1704904246435,-1000.0,0.000382,2]
[311100414,1704904246444,-163.69791724,0.00038206,7]
[311100415,1704904246454,-156.0,0.00038234,2]
[311100416,1704904246463,-218.44034584,0.00038276,7]
[311100417,1704904246472,-151.65186412,0.00038285,2]
[311100418,1704904246484,-571.52135556,0.00038329,8]
[311100419,1704904246493,-996.91,0.00038352,2]
[311100420,1704904246503,-666.0,0.00038356,2]
[311100421,1704904246513,-500.0,0.00038356,4]
[311100422,1704904246523,-500.0,0.00038356,4]
[311100423,1704904246533,-500.0,0.00038356,4]
[311100424,1704904246543,-500.0,0.00038356,4]
[311100425,1704904246552,-500.0,0.00038356,4]
[311100426,1704904246562,-500.0,0.00038356,4]
[311100427,1704904246571,-500.0,0.00038356,4]
[311100428,1704904246581,-500.0,0.00038356,4]
[311100429,1704904246590,-500.0,0.00038356,4]
[311100430,1704904246600,-500.0,0.00038356,4]
[311100431,1704904246609,-500.0,0.00038356,4]
[311100432,1704904246619,-550.46,0.00038356,4]
[311100433,1704904246629,-1020.36,0.00038356,2]
[311100434,1704904246639,-500.0,0.00038356,4]
[311100435,1704904246649,-500.0,0.00038356,4]
[311100436,1704904246659,-500.0,0.00038356,4]
[311100437,1704904246669,-504.79,0.00038356,4]
[311100438,1704904246679,-500.0,0.00038356,4]
[311100439,1704904246689,-500.0,0.00038356,4]
[311100440,1704904246699,-500.0,0.00038356,4]
[311100441,1704904246708,-639.21952981,0.00038356,4]
[311100442,1704904246718,-500.0,0.00038356,4]
[311100443,1704904246728,-500.0,0.00038356,4]
[311100445,1704904246738,-500.0,0.00038356,4]
[311100446,1704904246747,-500.0,0.00038356,4]
[311100448,1704904246756,-840.89,0.00038356,4]
[311100450,1704904246766,-500.0,0.00038356,4]
[311100452,1704904246776,-562.73,0.00038356,4]
[311100454,1704904246785,-500.0,0.00038356,4]
[311100456,1704904246795,-500.0,0.00038356,4]
[311100458,1704904246804,-500.0,0.00038356,4]
[311100459,1704904246813,-500.0,0.00038356,4]
[311100460,1704904246823,-500.0,0.00038356,4]
[311100461,1704904246832,-596.35,0.00038356,4]
[311100462,1704904246842,-500.0,0.00038356,4]
[311100463,1704904246852,-500.0,0.00038356,4]
[311100464,1704904246869,-500.0,0.00038356,4]
[311100465,1704904246884,-500.0,0.00038356,4]
[311100467,1704904246893,-500.0,0.00038356,4]
[311100469,1704904246901,-500.0,0.00038356,4]
[311100471,1704904246911,-500.0,0.00038356,4]
[311100473,1704904246921,-500.0,0.00038356,4]
[311100475,1704904246931,-500.0,0.00038356,4]
[311100476,1704904246940,-500.0,0.00038356,4]
[311100479,1704904246950,-1243.28,0.00038356,4]
[311100481,1704904246959,-500.0,0.00038356,4]
[311100482,1704904246969,-500.0,0.00038356,4]
[311100483,1704904246978,-639.62,0.00038356,4]
[311100484,1704904246987,-818.8,0.00038356,4]
[311100485,1704904246997,-500.0,0.00038356,4]
[311100486,1704904247006,-500.0,0.00038356,4]
[311100487,1704904247016,-500.0,0.00038356,4]
[311100488,1704904247026,-502.76327618,0.00038356,4]
[311100489,1704904247035,-500.0,0.00038356,4]
[311100490,1704904247045,-500.0,0.00038356,4]
[311100491,1704904247055,-358.59366586,0.00038356,4]
[311100492,1704904247065,-500.0,0.00038356,4]
[311100493,1704904247075,-500.0,0.00038356,4]
[311100494,1704904247086,-500.0,0.00038356,4]
[311100495,1704904247097,-1909.8,0.00038356,4]
[311100496,1704904247112,-500.0,0.00038356,4]
[311100497,1704904247122,-363.26389222,0.00038356,4]
[311100498,1704904247132,-500.0,0.00038356,4]
[311100499,1704904247142,-500.0,0.00038356,4]
[311100500,1704904247151,-500.0,0.00038356,4]
[311100501,1704904247161,-500.0,0.00038356,4]
[311100502,1704904247171,-500.0,0.00038356,4]
[311100503,1704904247182,-500.0,0.00038356,4]
[311100504,1704904247192,-500.0,0.00038356,4]
[311100505,1704904247202,-640.9580008,0.00038356,4]
[311100506,1704904247211,-500.0,0.00038356,4]
[311100507,1704904247220,-1698.2,0.00038356,4]
[311100508,1704904247230,-500.0,0.00038356,4]
[311100509,1704904247239,-500.0,0.00038356,4]
[311100510,1704904247249,-500.0,0.00038356,4]
[311100511,1704904247258,-500.0,0.00038356,4]
[311100512,1704904247268,-500.0,0.00038356,4]
[311100513,1704904247277,-500.0,0.00038356,4]
[311100514,1704904247287,-500.0,0.00038356,4]
[311100515,1704904247297,-502.86896975,0.00038356,4]
[311100516,1704904247307,-983.68,0.00038356,4]
[311100517,1704904247317,-500.0,0.00038356,4]
[311100518,1704904247326,-500.0,0.00038356,4]
[311100519,1704904247336,-500.0,0.00038356,4]
[311100520,1704904247345,-500.0,0.00038356,4]
[311100521,1704904247360,-317.56092922,0.00038356,4]
[311100522,1704904247369,-500.0,0.00038356,4]
[311100523,1704904247378,-500.0,0.00038356,4]
[311100524,1704904247388,-500.0,0.00038356,4]
[311100525,1704904247398,-728.67,0.00038356,4]
[311100526,1704904247408,-1000.0,0.00038356,4]
[311100527,1704904247417,-500.0,0.00038356,4]
[311100528,1704904247427,-500.0,0.00038356,4]
[311100529,1704904247437,-500.0,0.00038356,4]
[311100530,1704904247447,-500.0,0.00038356,4]
[311100531,1704904247456,-500.0,0.00038356,4]
[311100532,1704904247466,-500.0,0.00038356,4]
[311100533,1704904247476,-500.0,0.00038356,4]
[311100534,1704904247486,-510.95221677,0.00038356,4]
[311100535,1704904247497,-473.52320223,0.00038356,4]
[311100536,1704904247506,-1088.2,0.00038356,4]
[311100537,1704904247516,-500.0,0.00038356,4]
[311100538,1704904247525,-857.73,0.00038356,4]
[311100539,1704904247535,-500.0,0.00038356,4]
[311100540,1704904247544,-536.25973605,0.00038356,4]
[311100541,1704904247553,-500.0,0.00038356,4]
[311100542,1704904247563,-500.0,0.00038356,4]
[311100543,1704904247573,-500.0,0.00038356,4]
[311100544,1704904247582,-500.0,0.00038356,4]
[311100545,1704904247592,-227.07917873,0.00038356,4]
[311100546,1704904247605,-500.0,0.00038356,4]
[311100547,1704904247614,-500.0,0.00038356,4]
[311100548,1704904247624,-500.0,0.00038356,4]
[311100549,1704904247633,-500.0,0.00038356,4]
[311100550,1704904247643,-500.0,0.00038356,4]
[311100551,1704904247653,-500.0,0.00038356,4]
[311100552,1704904247663,-500.0,0.00038356,4]
[311100553,1704904247672,-500.0,0.00038356,4]
[311100554,1704904247682,-500.0,0.00038356,4]
[311100555,1704904247691,-500.0,0.00038356,4]
[311100556,1704904247701,-500.0,0.00038356,4]
[311100557,1704904247710,-500.0,0.00038356,4]
[311100558,1704904247720,-500.0,0.00038356,4]
[311100559,1704904247729,-500.0,0.00038356,4]
[311100560,1704904247739,-500.0,0.00038356,4]
[311100561,1704904247748,-500.0,0.00038356,4]
[311100562,1704904247758,-300.0,0.00038356,4]
[311100563,1704904247767,-500.0,0.00038356,4]
[311100564,1704904247777,-500.0,0.00038356,4]
[311100565,1704904247786,-500.0,0.00038356,4]
[311100566,1704904247795,-500.0,0.00038356,4]
[311100567,1704904247804,-500.0,0.00038356,4]
[311100568,1704904247813,-500.0,0.00038356,4]
[311100569,1704904247822,-500.0,0.00038356,4]
[311100570,1704904247831,-153.84,0.00038356,2]
[311100571,1704904247840,-914.61079172,0.00038374,2]
[311100572,1704904247855,-12199.52,0.000384,7]
[311100573,1704904247864,-6159.85659073,0.000384,2]
[311100574,1704904247874,-159.49727413,0.00038413,7]
[311100575,1704904247884,-163.69791724,0.00038418,7]
[311100576,1704904247893,-150.0,0.00038428,2]
[311100577,1704904247902,-163.69791724,0.00038455,7]
[311100578,1704904247911,-657.04217787,0.000385,2]
[311100579,1704904247922,-163.69791724,0.00038591,7]
[311100580,1704904247931,-256.07785542,0.00038594,7]
[311100581,1704904247941,-500.0,0.0003863,4]
[311100582,1704904247954,-500.0,0.0003863,4]
[311100583,1704904247963,-500.0,0.0003863,4]
[311100584,1704904247974,-500.0,0.0003863,4]
[311100585,1704904247983,-500.0,0.0003863,4]
[311100586,1704904247993,-500.0,0.0003863,4]
[311100587,1704904248001,-368.65857991,0.0003863,4]
[311100588,1704904248011,-500.0,0.0003863,4]
[311100589,1704904248021,-500.0,0.0003863,4]
[311100590,1704904248030,-500.0,0.0003863,4]
[311100591,1704904248040,-550.46,0.0003863,4]
[311100592,1704904248050,-500.0,0.0003863,4]
[311100593,1704904248060,-600.6133173,0.0003863,4]
[311100594,1704904248069,-500.0,0.0003863,4]
[311100595,1704904248079,-546.40669864,0.0003863,4]
[311100596,1704904248088,-500.0,0.0003863,4]
[311100597,1704904248098,-500.0,0.0003863,4]
[311100598,1704904248108,-587.18,0.0003863,4]
[311100599,1704904248120,-840.89,0.0003863,4]
[311100600,1704904248129,-562.73,0.0003863,4]
[311100601,1704904248138,-369.15,0.0003863,4]
[311100602,1704904248147,-500.0,0.0003863,4]
[311100603,1704904248156,-500.0,0.0003863,4]
[311100604,1704904248165,-500.0,0.0003863,4]
[311100605,1704904248174,-500.0,0.0003863,4]
[311100606,1704904248224,-500.0,0.0003863,4]
[311100607,1704904248233,-500.0,0.0003863,4]
[311100608,1704904248243,-500.0,0.0003863,4]
[311100609,1704904248252,-500.0,0.0003863,4]
[311100610,1704904248262,-1243.28,0.0003863,4]
[311100611,1704904248271,-500.0,0.0003863,4]
[311100612,1704904248280,-500.0,0.0003863,4]
[311100613,1704904248290,-253.37,0.0003863,4]
[311100614,1704904248299,-818.8,0.0003863,4]
[311100615,1704904248308,-500.0,0.0003863,4]
[311100616,1704904248317,-362.21,0.0003863,4]
[311100617,1704904248326,-500.0,0.0003863,4]